fUSD/lending_fUSD_20240521
["ID","MTS","AMOUNT","RATE_DAILY","PERIOD"]
[327702431,1716328238429,-210.71740201,0.00029736,7]
[327702432,1716328238439,-512.93,0.00029854,2]
[327702433,1716328238449,-255.95,0.0003,3]
[327702434,1716328238458,-210.71740201,0.0003009,7]
[327702435,1716328238468,-1071.28580301,0.000304,7]
[327702436,1716328238480,-671.65301558,0.000304,7]
[327702437,1716328238491,-388.33639583,0.000304,7]
[327702438,1716328238503,-1002.35337977,0.000304,7]
[327702440,1716328240897,344.15088924,0.0001264,2]
[327702448,1716328242954,-7224.76617335,0.000304,7]
[327702449,1716328243067,-1483.51991344,0.000304,7]
[327702464,1716328243323,-414.9050606,0.000304,7]
[327702466,1716328243335,-1876.24921316,0.000304,7]
[327702478,1716328243529,-2588.95526832,0.000304,7]
[327702479,1716328243541,-6619.49999999,0.000304,7]
[327702480,1716328243552,-5338.00586752,0.000304,7]
[327702481,1716328243564,-449.26470566,0.000304,7]
[327702488,1716328246494,4360.40957454,0.0001264,2]
[327702490,1716328248190,-500.0,0.000185,2]
[327702491,1716328248201,-6477.1289991,0.000304,7]
[327702492,1716328252153,547665.6512368,0.0001264,2]
[327702493,1716328253091,172.87876254,0.0001264,2]
[327702494,1716328259568,1254.89125197,0.00012387,2]
[327702495,1716328276355,50485.52920189,0.0001264,2]
[327702496,1716328286582,187.38,0.0002829,120]
[327702497,1716328313319,19717.56505747,0.0001264,2]
[327702498,1716328802860,150.0,0.0001264,2]
[327702499,1716328803058,282.62961632,0.0001264,2]
[327702500,1716328830283,700.50571,0.0001264,2]
[327702501,1716328992305,1325.62329244,0.0001264,2]
[327702502,1716329112831,2688.66763685,9.48e-05,2]
[327702503,1716329225148,-751.19369578,0.00013906,2]
[327702504,1716329225169,-2628.71376586,0.00013907,2]
[327702505,1716329235166,-686.01644811,0.00013907,2]
[327702506,1716329242105,-685.26978603,0.00013907,2]
[327702507,1716329242127,-313.21,0.00013973,2]
[327702508,1716329242149,-157.17,0.00013973,2]
[327702509,1716329242169,-1039.20687623,0.00014,2]
[327702510,1716329242190,-419.26660054,0.00014825,2]
[327702511,1716329251110,-154.59625969,0.00013873,2]
[327702512,1716329251134,-571.61364933,0.00014825,2]
[327702537,1716329432250,-579.449106,0.0001475,2]
[327702538,1716329432260,-99.05459921,0.00014825,2]
[327702539,1716329432272,-801.36554768,0.00014825,2]
[327702540,1716329432283,-138.78672934,0.00014825,2]
[327702541,1716329432293,-169.35335613,0.00014825,2]
[327702542,1716329432420,-1136.19664386,0.00014825,2]
[327702543,1716329432430,-187.58779232,0.000149,2]
[327702544,1716329432440,-150.0,0.00014989,2]
[327702545,1716329432452,-2220.43629153,0.0001499,2]
[327702546,1716329432464,-562.43544538,0.0001499,2]
[327702547,1716329432476,-1266.7972655,0.0001499,2]
[327702548,1716329432488,-5137.53228514,0.0001499,2]
[327702549,1716329432500,-1817.97981109,0.0001499,2]
[327702550,1716329432510,-964.53021746,0.00015,2]
[327702551,1716329432521,-3142.88092348,0.00015,2]
[327702552,1716329432532,-875.59927975,0.00015,2]
[327702553,1716329432544,-6982.8378,0.00015,2]
[327702554,1716329432556,-1600.69348217,0.00015,2]
[327702555,1716329432584,-320.45618964,0.00015,2]
[327702590,1716329438673,-451.57864314,0.00015,2]
[327702591,1716329438685,-524.18265939,0.00015,2]
[327702592,1716329438696,-330.2694009,0.00015,2]
[327702593,1716329438709,-611.56751101,0.00015,2]
[327702594,1716329438720,-823.4450615,0.00015,2]
[327702595,1716329438732,-20847.64516301,0.00015,2]
[327702596,1716329438742,-1043.64061414,0.00015,2]
[327702597,1716329438752,-449.23422977,0.00015,2]
[327702598,1716329438761,-499.99,0.00016488,2]
[327702599,1716329438771,-210.0,0.00016488,2]
[327702600,1716329438781,-1227.04758271,0.000165,2]
[327702601,1716329438790,-2597.3552,0.00017125,2]
[327702602,1716329438800,-880.52,0.00017125,2]
[327702603,1716329438810,-293.0,0.00018137,2]
[327702604,1716329438819,-500.0,0.000185,2]
[327702605,1716329438829,-173.94,0.00018563,2]
[327702606,1716329438839,-342.49865612,0.00019,2]
[327702607,1716329438848,-247.0,0.0001995,2]
[327702608,1716329438858,-257.06478946,0.0002,2]
[327702609,1716329438867,-445.32504803,0.0002,2]
[327702610,1716329438877,-313.21,0.00020447,2]
[327702611,1716329438887,-340.92,0.00021022,2]
[327702612,1716329438897,-370.67,0.00022607,2]
[327702613,1716329438907,-250.0,0.0002268,2]
[327702614,1716329438916,-250.0,0.00022786,2]
[327702615,1716329438926,-155.46,0.00023102,2]
[327702616,1716329438935,-18750.61073816,0.00023131,2]
[327702617,1716329438948,-302.52178472,0.00023131,2]
[327702618,1716329438973,-1992.74934569,0.00023131,2]
[327702619,1716329438989,-2854.11813143,0.00023131,2]
[327702620,1716329438998,-155.46,0.00023177,2]
[327702621,1716329439009,-155.46,0.00023253,2]
[327702622,1716329439019,-340.92,0.00023286,2]
[327702623,1716329439030,-155.46,0.00023328,2]
[327702624,1716329439041,-155.46,0.00023403,2]
[327702625,1716329439051,-155.46,0.00023478,2]
[327702626,1716329439065,-155.46,0.00023553,2]
[327702627,1716329439075,-155.46,0.00023629,2]
[327702628,1716329439086,-155.46,0.00023704,2]
[327702630,1716329439096,-63.85671004,0.00023779,2]
[327702631,1716329439109,-91.60328996,0.00023779,2]
[327702632,1716329439119,-155.46,0.00023854,2]
[327702633,1716329439130,-155.46,0.0002393,2]
[327702634,1716329439140,-155.46,0.00024005,2]
[327702635,1716329439150,-155.46,0.0002408,2]
[327702636,1716329439161,-155.46,0.00024155,2]
[327702637,1716329439171,-155.46,0.00024231,2]
[327702638,1716329439181,-200.0,0.00024275,2]
[327702639,1716329439191,-155.46,0.00024306,2]
[327702640,1716329439201,-250.0,0.00024658,2]
[327702641,1716329439213,-1427.85452135,0.00025,4]
[327702642,1716329439225,-2878.78409147,0.00025,4]
[327702643,1716329439235,-310.42918611,0.00025549,2]
[327702644,1716329439248,-30.49081389,0.00025549,2]
[327702645,1716329439259,-157.17,0.00026274,2]
[327702646,1716329439269,-203.0,0.0002653,2]
[327702647,1716329439280,-313.21,0.00026921,2]
[327702648,1716329439290,-747.22403344,0.00027178,2]
[327702649,1716329439300,-200.0,0.00027309,2]
[327702650,1716329439311,-340.92,0.00027813,2]
[327702651,1716329439322,-203.0,0.0002803,2]
[327702652,1716329439332,-612.0,0.0002945,2]
[327702653,1716329439570,-1225.0,0.0002945,2]
[327702654,1716329439580,-1263.0,0.0002945,2]
[327702655,1716329439589,-809.0,0.0002945,2]
[327702656,1716329439599,-150.0,0.0002945,2]
[327702657,1716329439608,-164.0,0.0002945,2]
[327702658,1716329439618,-445.0,0.0002945,2]
[327702659,1716329439628,-439.0,0.0002945,2]
[327702660,1716329439637,-215.0,0.0002945,2]
[327702661,1716329439646,-1276.292,0.0002945,2]
[327702662,1716329439656,-203.0,0.0002952,2]
[327702663,1716329439665,-152.54522823,0.00029554,2]
[327702664,1716329439675,-5132.0,0.00029668,2]
[327702665,1716329439685,-1465.0,0.00029668,2]
[327702666,1716329439695,-1061.0,0.00029668,2]
[327702667,1716329439705,-340.92,0.00030077,2]
[327702668,1716329439716,-3336.3254,0.000301,2]
[327702669,1716329439726,-4794.9166,0.000301,2]
[327702670,1716329439736,-497.2305,0.000301,2]
[327702671,1716329439746,-2500.0,0.000301,2]
[327702672,1716329439756,-511.65059813,0.000301,2]
[327702673,1716329439765,-378.83157048,0.00030199,4]
[327702674,1716329439775,-41230.27325582,0.000302,2]
[327702675,1716329439788,-820.63865663,0.000302,2]
[327702676,1716329439799,-322.60754688,0.000302,2]
[327702677,1716329439815,-683.175201,0.000302,2]
[327702678,1716329439826,-3638.90769307,0.000302,2]
[327702705,1716329440775,-1006.00952259,0.00029717,2]
[327702706,1716329440788,-559.65628902,0.00029717,2]
[327702707,1716329440798,-1534.10371098,0.000302,2]
[327702708,1716329440809,-32719.16103562,0.000302,2]
[327702709,1716329440819,-1000.0,0.000302,2]
[327702710,1716329440828,-20494.9805,0.000303,2]
[327702711,1716329440838,-85323.51373454,0.000303,2]
[327702712,1716329440850,-374.83,0.000303,2]
[327702720,1716329443818,-289.62124792,0.0001486,2]
[327702721,1716329443830,-410.88447208,0.0001486,2]
[327702722,1716329443839,-700.50572,0.000161,2]
[327702723,1716329443849,-700.50571,0.0001736,2]
[327702724,1716329443859,-700.50572,0.000186,2]
[327702725,1716329443869,-700.50572,0.0001986,2]
[327702726,1716329443880,-506.7,0.0003029,3]
[327702727,1716329443891,-14301.65626546,0.000303,2]
[327702728,1716329443900,-11495.6154,0.000303,2]
[327702729,1716329443910,-200.0,0.00030344,2]
[327702730,1716329443919,-41011.18687735,0.000304,7]
[327702731,1716329443932,-2997.46817935,0.000304,7]
[327702732,1716329443943,-541.29070553,0.000304,7]
[327702733,1716329444065,-759.39000985,0.000304,7]
[327702734,1716329444077,-332.71048233,0.000304,7]
[327702735,1716329444088,-13389.94545647,0.000304,7]
[327702745,1716329446293,-167717.32078023,0.000304,7]
[327702746,1716329446303,-446.62902304,0.0003041,6]
[327702747,1716329446312,-500.0,0.0003041,6]
[327702748,1716329446322,-525.6,0.0003041,6]
[327702749,1716329446331,-500.0,0.0003041,6]
[327702750,1716329446341,-500.0,0.0003041,6]
[327702751,1716329446350,-500.0,0.0003041,6]
[327702752,1716329446361,-500.0,0.0003041,6]
[327702753,1716329446370,-500.0,0.0003041,6]
[327702754,1716329446380,-500.0,0.0003041,6]
[327702755,1716329446389,-500.0,0.0003041,6]
[327702756,1716329446399,-500.0,0.0003041,6]
[327702757,1716329446409,-500.0,0.0003041,6]
[327702758,1716329446419,-500.0,0.0003041,6]
[327702759,1716329446428,-500.0,0.0003041,6]
[327702760,1716329446438,-500.0,0.0003041,6]
[327702761,1716329446447,-401.78768778,0.0003041,6]
[327702762,1716329446457,-500.0,0.0003041,6]
[327702763,1716329446467,-525.93,0.0003041,6]
[327702764,1716329446476,-500.0,0.0003041,6]
[327702765,1716329446485,-500.0,0.0003041,6]
[327702766,1716329446495,-500.0,0.0003041,6]
[327702767,1716329446504,-500.0,0.0003041,6]
[327702768,1716329446514,-500.0,0.0003041,6]
[327702769,1716329446523,-500.0,0.0003041,6]
[327702770,1716329446532,-500.0,0.0003041,6]
[327702771,1716329446542,-500.0,0.0003041,6]
[327702772,1716329446551,-500.0,0.0003041,6]
[327702773,1716329446560,-500.0,0.0003041,6]
[327702774,1716329446569,-500.0,0.0003041,6]
[327702775,1716329446589,-181.8708058,0.0003041,2]
[327702776,1716329446600,-262.11445718,0.0003041,6]
[327702777,1716329446610,-500.0,0.0003041,6]
[327702778,1716329446620,-500.0,0.0003041,6]
[327702779,1716329446630,-500.0,0.0003041,6]
[327702780,1716329446640,-500.0,0.0003041,6]
[327702781,1716329446650,-500.0,0.0003041,6]
[327702782,1716329446659,-500.0,0.0003041,6]
[327702784,1716329446669,-500.0,0.0003041,6]
[327702785,1716329446679,-500.0,0.0003041,6]
[327702786,1716329446688,-500.0,0.0003041,6]
[327702787,1716329446698,-500.0,0.0003041,6]
[327702788,1716329446708,-500.0,0.0003041,6]
[327702789,1716329446718,-500.0,0.0003041,6]
[327702790,1716329446728,-500.0,0.0003041,6]
[327702791,1716329446738,-500.0,0.0003041,6]
[327702792,1716329446749,-500.0,0.0003041,6]
[327702793,1716329446758,-454.00185727,0.0003041,6]
[327702794,1716329446768,-557.47,0.0003041,6]
[327702795,1716329446783,-500.0,0.0003041,6]
[327702796,1716329446792,-500.0,0.0003041,6]
[327702797,1716329446803,-500.0,0.0003041,6]
[327702798,1716329446813,-610.50610044,0.0003041,6]
[327702799,1716329446823,-500.0,0.0003041,6]
[327702800,1716329446834,-500.0,0.0003041,6]
[327702801,1716329446844,-500.0,0.0003041,6]
[327702802,1716329446854,-317.31340147,0.0003041,6]
[327702803,1716329446863,-500.0,0.0003041,6]
[327702804,1716329446873,-500.0,0.0003041,6]
[327702805,1716329446883,-500.0,0.0003041,6]
[327702806,1716329446892,-500.0,0.0003041,6]
[327702807,1716329446906,-500.0,0.0003041,6]
[327702808,1716329446918,-573.12,0.0003041,6]
[327702809,1716329446928,-500.0,0.0003041,6]
[327702810,1716329446939,-500.0,0.0003041,6]
[327702811,1716329446950,-500.0,0.0003041,6]
[327702812,1716329446961,-1073.03,0.0003041,6]
[327702813,1716329446970,-500.0,0.0003041,6]
[327702814,1716329446981,-500.0,0.0003041,6]
[327702815,1716329446996,-500.0,0.0003041,6]
[327702816,1716329447007,-500.0,0.0003041,6]
[327702817,1716329447018,-853.43,0.0003041,6]
[327702818,1716329447029,-500.0,0.0003041,6]
[327702819,1716329447039,-601.93,0.0003041,6]
[327702820,1716329447049,-1596.5,0.0003041,6]
[327702821,1716329447059,-500.0,0.0003041,6]
[327702822,1716329447072,-500.0,0.0003041,6]
[327702823,1716329447082,-1369.95,0.0003041,6]
[327702824,1716329447091,-500.0,0.0003041,6]
[327702825,1716329447100,-500.0,0.0003041,6]
[327702826,1716329447110,-4439.8,0.0003041,6]
[327702827,1716329447119,-500.0,0.0003041,6]
[327702828,1716329447129,-1749.34,0.0003041,6]
[327702829,1716329447138,-500.0,0.0003041,6]
[327702830,1716329447148,-500.0,0.0003041,6]
[327702831,1716329447157,-500.0,0.0003041,6]
[327702832,1716329447166,-500.0,0.0003041,6]
[327702833,1716329447176,-500.0,0.0003041,6]
[327702834,1716329447185,-500.0,0.0003041,6]
[327702835,1716329447257,-1425.56,0.0003041,6]
[327702836,1716329447267,-729.34,0.0003041,6]
[327702837,1716329447277,-500.0,0.0003041,6]
[327702838,1716329447286,-500.0,0.0003041,6]
[327702839,1716329447295,-500.0,0.0003041,6]
[327702840,1716329447304,-500.0,0.0003041,6]
[327702841,1716329447314,-500.0,0.0003041,6]
[327702842,1716329447323,-601.53,0.0003041,6]
[327702843,1716329447332,-500.0,0.0003041,6]
[327702844,1716329447341,-1004.04,0.0003041,6]
[327702845,1716329447351,-602.82,0.0003041,6]
[327702846,1716329447360,-689.92,0.0003041,6]
[327702847,1716329447370,-500.71,0.0003041,6]
[327702848,1716329447380,-1239.87,0.0003041,6]
[327702849,1716329447389,-455.27066671,0.0003041,6]
[327702850,1716329447399,-500.0,0.0003041,6]
[327702851,1716329447408,-1330.6,0.0003041,6]
[327702852,1716329447418,-584.28,0.0003041,6]
[327702853,1716329447428,-4202.91,0.0003041,6]
[327702854,1716329447438,-500.0,0.0003041,6]
[327702855,1716329447447,-500.0,0.0003041,6]
[327702856,1716329447457,-500.0,0.0003041,6]
[327702857,1716329447466,-720.67,0.0003041,6]
[327702858,1716329447475,-500.0,0.0003041,6]
[327702859,1716329447484,-673.46,0.0003041,6]
[327702860,1716329447495,-4097.13,0.0003041,6]
[327702861,1716329447504,-500.0,0.0003041,6]
[327702862,1716329447513,-821.48,0.0003041,6]
[327702863,1716329447523,-916.29,0.0003041,6]
[327702864,1716329447532,-604.61,0.0003041,6]
[327702865,1716329447542,-645.24,0.0003041,6]
[327702866,1716329447552,-1531.62,0.0003041,6]
[327702867,1716329447561,-500.0,0.0003041,6]
[327702868,1716329447570,-500.0,0.0003041,6]
[327702869,1716329447580,-500.0,0.0003041,6]
[327702870,1716329447589,-500.0,0.0003041,6]
[327702871,1716329447600,-500.0,0.0003041,6]
[327702872,1716329447609,-500.0,0.0003041,6]
[327702873,1716329447618,-658.17,0.0003041,6]
[327702874,1716329447627,-500.0,0.0003041,6]
[327702875,1716329447636,-500.0,0.0003041,6]
[327702876,1716329447649,-500.0,0.0003041,6]
[327702877,1716329447658,-2968.0,0.0003041,6]
[327702878,1716329447668,-500.0,0.0003041,6]
[327702879,1716329447677,-500.0,0.0003041,6]
[327702880,1716329447687,-500.0,0.0003041,6]
[327702881,1716329447696,-789.85,0.0003041,6]
[327702882,1716329447705,-500.0,0.0003041,6]
[327702883,1716329447715,-500.0,0.0003041,6]
[327702884,1716329447724,-500.0,0.0003041,6]
[327702885,1716329447733,-1108.1,0.0003041,6]
[327702886,1716329447742,-500.0,0.0003041,6]
[327702887,1716329447752,-556.28,0.0003041,6]
[327702888,1716329447761,-500.0,0.0003041,6]
[327702889,1716329447771,-500.0,0.0003041,6]
[327702890,1716329447779,-500.0,0.0003041,6]
[327702891,1716329447789,-8.91699026,0.0003041,6]
[327702892,1716329447990,-2842.92300974,0.0003041,6]
[327702893,1716329447999,-500.0,0.0003041,6]
[327702894,1716329448009,-33.99213913,0.0003041,6]
[327702895,1716329448020,-1047.03786087,0.0003041,6]
[327702896,1716329448031,-500.0,0.0003041,6]
[327702897,1716329448040,-500.0,0.0003041,6]
[327702898,1716329448050,-996.48,0.0003041,6]
[327702899,1716329448059,-629.32,0.0003041,6]
[327702900,1716329448071,-506.0,0.0003041,6]
[327702901,1716329448081,-441.20451873,0.0003041,6]
[327702902,1716329941443,206.51,0.00028152,120]
[327702903,1716329995954,2000.0,0.00027548,120]
[327702904,1716330427159,-155.0,0.00013966,2]
[327702905,1716330427182,-1381.21503003,0.00013967,2]
[327702906,1716330427204,-208.68716527,0.00013968,2]
[327702907,1716330427229,-326.80688808,0.00013969,2]
[327702908,1716330427256,-154.47,0.00013973,2]
[327702909,1716330427279,-1205.94903723,0.00014823,2]
[327702910,1716330427306,-3970.92051705,0.00014824,2]
[327702911,1716330439172,-620.92447579,0.00014824,2]
[327702912,1716330439195,-2712.41698314,0.00014825,2]
[327702913,1716330443104,-701.49155312,0.00014825,2]
[327702914,1716330448156,-241.55360116,0.00014825,2]
[327702922,1716330631823,-1677.84463979,0.00014824,2]
[327702925,1716330631834,-749.56,0.00014824,2]
[327702927,1716330631847,-387.99999996,0.00014824,2]
[327702929,1716330631858,-496.346633,0.00014824,2]
[327702932,1716330631872,-730.35536255,0.00014824,2]
[327702945,1716330632024,-17075.6912,0.00014824,2]
[327702949,1716330632036,-21664.956,0.00014824,2]
[327702952,1716330632047,-13976.62092,0.00014824,2]
[327702955,1716330632058,-14146.59872907,0.00014824,2]
[327702958,1716330632067,-430.11875093,0.00014825,2]
[327702961,1716330632079,-10212.60757065,0.00014825,2]
[327702964,1716330632088,-1039.20687623,0.00014825,2]
[327702967,1716330632097,-1227.04758271,0.000165,2]
[327702970,1716330632107,-630.80094811,0.0001667,2]
[327702973,1716330632117,-1205.94903723,0.00018498,2]
[327702976,1716330632127,-1645.73767932,0.00018499,2]
[327702979,1716330632137,-500.0,0.000185,2]
[327702982,1716330632146,-1935.44870575,0.000189,3]
[327702985,1716330632158,-423.55129425,0.000189,3]
[327702988,1716330632167,-701.0,0.000189,3]
[327702991,1716330632177,-499.99,0.00019452,2]
[327702994,1716330632186,-287.96,0.00025773,2]
[327702996,1716330632196,-3392.87,0.00025927,2]
[327702998,1716330632205,-250.0,0.00026119,2]
[327703000,1716330632215,-280.0,0.00026327,2]
[327703002,1716330632224,-250.0,0.00026882,2]
[327703004,1716330632233,-241.55220599,0.00026997,2]
[327703006,1716330632243,-155.74822283,0.00027244,2]
[327703008,1716330632252,-250.0,0.00027445,2]
[327703009,1716330632262,-299.48948652,0.00027548,2]
[327703010,1716330632272,-13093.24303738,0.00027548,2]
[327703011,1716330632285,-1536.45624291,0.00027548,2]
[327703012,1716330632296,-6947.77168517,0.00027548,2]
[327703013,1716330632317,-367.70806079,0.00027548,2]
[327703019,1716330638700,-5019.44942,0.00027548,2]
[327703021,1716330638712,-10511.0578852,0.00027548,2]
[327703023,1716330638722,-1043.64061414,0.00027548,2]
[327703025,1716330638732,-257.06478946,0.00027548,2]
[327703026,1716330638742,-445.32504803,0.00027548,2]
[327703027,1716330638751,-287.96,0.00028037,2]
[327703028,1716330638760,-158.49166789,0.00029125,2]
[327703029,1716330638770,-280.0,0.00029618,2]
[327703030,1716330638779,-467.8027,0.0003,2]
[327703031,1716330638789,-210.6547,0.0003,2]
[327703032,1716330638798,-1000.0,0.0003,2]
[327703033,1716330638808,-460.48553829,0.0003,2]
[327703034,1716330638818,-2500.0,0.0003,2]
[327703035,1716330638827,-710.0002,0.0003,2]
[327703036,1716330638836,-155.0,0.00030098,4]
[327703037,1716330638845,-409.84120861,0.00030098,4]
[327703038,1716330638855,-1116.38822447,0.00030098,2]
[327703039,1716330638864,-281.88330445,0.00030098,4]
[327703040,1716330638873,-155.0,0.00030098,4]
[327703041,1716330638883,-1546.69133239,0.00030099,4]
[327703042,1716330638892,-6197.05684609,0.00030099,4]
[327703043,1716330638902,-500.0,0.000301,2]
[327703044,1716330638911,-7272.6440094,0.000301,2]
[327703045,1716330638935,-439.02832619,0.000301,2]
[327703046,1716330638946,-2199.76057497,0.000301,2]
[327703047,1716330638957,-2316.65677483,0.000301,2]
[327703050,1716330640032,-87771.91031461,0.000301,2]
[327703051,1716330640043,-58762.5629,0.000301,2]
[327703052,1716330640053,-157.052206,0.00030148,32]
[327703053,1716330640064,-314.052206,0.00030198,30]
[327703054,1716330640074,-157.052206,0.00030248,30]
[327703055,1716330640084,-157.052206,0.00030298,32]
[327703056,1716330640094,-287.96,0.00030301,2]
[327703057,1716330640104,-157.052206,0.00030348,32]
[327703058,1716330640113,-1025.71334168,0.00030349,2]
[327703059,1716330640124,-314.052206,0.00030398,30]
[327703060,1716330640134,-226.92,0.0003041,6]
[327703061,1716330640144,-500.0,0.0003041,6]
[327703062,1716330640154,-500.0,0.0003041,6]
[327703063,1716330640164,-549.24,0.0003041,6]
[327703064,1716330640174,-500.0,0.0003041,6]
[327703065,1716330640184,-500.0,0.0003041,6]
[327703066,1716330640194,-500.0,0.0003041,6]
[327703067,1716330640203,-500.0,0.0003041,6]
[327703068,1716330640214,-500.0,0.0003041,6]
[327703069,1716330640223,-500.0,0.0003041,6]
[327703070,1716330640233,-160.49,0.0003041,6]
[327703071,1716330640243,-500.0,0.0003041,6]
[327703072,1716330640253,-500.0,0.0003041,6]
[327703073,1716330640262,-500.0,0.0003041,6]
[327703074,1716330640273,-500.0,0.0003041,6]
[327703075,1716330640283,-500.0,0.0003041,6]
[327703076,1716330640293,-500.0,0.0003041,6]
[327703077,1716330640303,-500.0,0.0003041,6]
[327703078,1716330640313,-500.0,0.0003041,6]
[327703079,1716330640323,-500.0,0.0003041,6]
[327703080,1716330640333,-500.0,0.0003041,6]
[327703081,1716330640343,-500.0,0.0003041,6]
[327703082,1716330640356,-500.0,0.0003041,6]
[327703083,1716330640366,-500.0,0.0003041,6]
[327703084,1716330640376,-403.43237754,0.0003041,6]
[327703085,1716330640386,-500.0,0.0003041,6]
[327703086,1716330640396,-500.0,0.0003041,6]
[327703087,1716330640407,-500.0,0.0003041,6]
[327703088,1716330640417,-500.0,0.0003041,6]
[327703089,1716330640426,-350.79185636,0.0003041,6]
[327703090,1716330640439,-500.0,0.0003041,6]
[327703091,1716330640448,-500.0,0.0003041,6]
[327703092,1716330640458,-500.0,0.0003041,6]
[327703093,1716330640468,-500.0,0.0003041,6]
[327703094,1716330640478,-500.0,0.0003041,6]
[327703095,1716330640488,-500.0,0.0003041,6]
[327703096,1716330640498,-500.0,0.0003041,6]
[327703097,1716330640507,-500.0,0.0003041,6]
[327703098,1716330640517,-500.0,0.0003041,6]
[327703099,1716330640528,-500.0,0.0003041,6]
[327703100,1716330640537,-500.0,0.0003041,6]
[327703101,1716330640547,-500.0,0.0003041,6]
[327703102,1716330640556,-587.1,0.0003041,6]
[327703103,1716330640566,-500.0,0.0003041,6]
[327703104,1716330640576,-500.0,0.0003041,6]
[327703105,1716330640585,-1028.32,0.0003041,6]
[327703106,1716330640595,-628.86,0.0003041,6]
[327703107,1716330640605,-500.0,0.0003041,6]
[327703108,1716330640614,-500.0,0.0003041,6]
[327703109,1716330640624,-500.0,0.0003041,6]
[327703110,1716330640634,-500.0,0.0003041,6]
[327703111,1716330640643,-633.85161898,0.0003041,6]
[327703112,1716330640652,-500.0,0.0003041,6]
[327703113,1716330640662,-698.35,0.0003041,6]
[327703114,1716330640671,-817.87,0.0003041,6]
[327703115,1716330640680,-1529.98,0.0003041,6]
[327703116,1716330640690,-7703.78,0.0003041,6]
[327703117,1716330640700,-4254.81,0.0003041,6]
[327703118,1716330640709,-500.0,0.0003041,6]
[327703119,1716330640719,-500.0,0.0003041,6]
[327703120,1716330640729,-500.0,0.0003041,6]
[327703121,1716330640739,-500.0,0.0003041,6]
[327703122,1716330640749,-1676.45,0.0003041,6]
[327703123,1716330640759,-1312.87,0.0003041,6]
[327703124,1716330640769,-698.95,0.0003041,6]
[327703125,1716330640779,-500.0,0.0003041,6]
[327703126,1716330640789,-500.0,0.0003041,6]
[327703127,1716330640799,-500.0,0.0003041,6]
[327703128,1716330640809,-579.22,0.0003041,6]
[327703129,1716330640818,-1366.16,0.0003041,6]
[327703130,1716330640828,-580.83666452,0.0003041,6]
[327703131,1716330640837,-577.7,0.0003041,6]
[327703132,1716330640847,-500.0,0.0003041,6]
[327703133,1716330640857,-500.0,0.0003041,6]
[327703134,1716330640866,-500.0,0.0003041,6]
[327703135,1716330640876,-576.47,0.0003041,6]
[327703136,1716330640885,-576.85,0.0003041,6]
[327703137,1716330640895,-4027.79,0.0003041,6]
[327703138,1716330640905,-3926.42,0.0003041,6]
[327703139,1716330640915,-500.0,0.0003041,6]
[327703140,1716330640925,-500.0,0.0003041,6]
[327703141,1716330640934,-500.0,0.0003041,6]
[327703142,1716330640945,-500.0,0.0003041,6]
[327703143,1716330640954,-500.0,0.0003041,6]
[327703144,1716330640963,-641.58113166,0.0003041,6]
[327703145,1716330640972,-500.0,0.0003041,6]
[327703146,1716330640982,-500.0,0.0003041,6]
[327703147,1716330640991,-500.0,0.0003041,6]
[327703148,1716330641000,-559.94,0.0003041,6]